Workbook

Sheet List
A1: Population | B1: Income | C1: Unemployment | D1: Category | F1: =Map!B1 -> Population | G1: Selection | H1: Red | I1: Green | J1: Blue | L1: Selection | M1: Red | N1: Green | O1: Blue | R1: DropDownDash | S1: Match
A2: 0 | B2: 0 | C2: 0 | D2: 1 | F2: Population | G2: 0 to 3.0m | H2: 224 | I2: 243 | J2: 248 | L2: =INDEX($G$2:$G$25,MATCH($F$1,$F$2:$F$25,0),1) -> 0 to 3.0m | M2: =INDEX(H$2:H$16,MATCH($L2,$G$2:$G$16,0),1) -> 224 | N2: =INDEX(I$2:I$25,MATCH($L2,$G$2:$G$25,0),1) -> 243 | O2: 248 | R2: Population | S2: 1
A3: 3000000 | B3: 14000 | C3: 5.5 | D3: 2 | G3: 3m to 5m | H3: 116 | I3: 173 | J3: 209 | L3: =INDEX($G$2:$G$25,MATCH($F$1,$F$2:$F$25,0)+ROW(A1),1) -> 3m to 5m | M3: =INDEX(H$2:H$25,MATCH($L3,$G$2:$G$25,0),1) -> 116 | N3: 173 | O3: 209 | R3: Income | S3: 2
A4: 5000000 | B4: 16000 | C4: 6.5 | D4: 3 | G4: 5m to 6m | H4: 14 | I4: 17 | J4: 136 | L4: =INDEX($G$2:$G$25,MATCH($F$1,$F$2:$F$25,0)+ROW(A2),1) -> 5m to 6m | M4: =INDEX(H$2:H$25,MATCH($L4,$G$2:$G$25,0),1) -> 14 | N4: 17 | O4: 136 | R4: Unemployment | S4: 3
A5: 6000000 | B5: 18000 | C5: 8 | D5: 4 | G5: 6m to 8m | H5: 247 | I5: 174 | J5: 97 | L5: =INDEX($G$2:$G$25,MATCH($F$1,$F$2:$F$25,0)+ROW(A3),1) -> 6m to 8m | M5: =INDEX(H$2:H$25,MATCH($L5,$G$2:$G$25,0),1) -> 247 | N5: =INDEX(I$2:I$25,MATCH($L5,$G$2:$G$25,0),1) -> 174 | O5: =INDEX(J$2:J$25,MATCH($L5,$G$2:$G$25,0),1) -> 97
A6: 8000000 | B6: 19000 | C6: 9 | D6: 5 | G6: 8m + | H6: 215 | I6: 48 | J6: 39 | L6: =INDEX($G$2:$G$25,MATCH($F$1,$F$2:$F$25,0)+ROW(A4),1) -> 8m + | M6: =INDEX(H$2:H$25,MATCH($L6,$G$2:$G$25,0),1) -> 215 | N6: =INDEX(I$2:I$25,MATCH($L6,$G$2:$G$25,0),1) -> 48 | O6: =INDEX(J$2:J$25,MATCH($L6,$G$2:$G$25,0),1) -> 39
F7: Income | G7: 0 to 14K | H7: 253 | I7: 219 | J7: 199
G8: 14K to 16K | H8: 214 | I8: 96 | J8: 77
G9: 16K to 18K | H9: 103 | I9: 0 | J9: 31
G10: 18K to 19K | H10: 178 | I10: 171 | J10: 210
G11: 19K + | H11: 84 | I11: 39 | J11: 136
F12: Unemployment | G12: 0 to 6% | H12: 253 | I12: 224 | J12: 239
G13: 6% to 7% | H13: 222 | I13: 119 | J13: 174
G14: 7% to 8% | H14: 142 | I14: 1 | J14: 82
G15: 8% to 9% | H15: 171 | I15: 213 | J15: 233
G16: 9% + | H16: 54 | I16: 96 | J16: 146

Sheet Data
A1: Shape | B1: Area name | C1: 0 to 9 | D1: 10 to 19 | E1: 20 to 30 | F1: 30 to 59 | G1: 60 to 74 | H1: 75 and Over | I1: All Ages | J1: Income per Head | K1: 2011 Unemployment | L1: Population | M1: Income | N1: Unemployment | P1: =INDEX($L$1:$N$11,ROW(A1),MATCH(Map!$B$1,$L$1:$N$1,0)) -> Population | Q1: Chosen | R1: Desc
A2: NorthEast | B2: North East | C2: 286142 | D2: 314485 | E2: 348321 | F2: 1029877 | G2: 407818 | H2: 210243 | I2: =SUM(C2:H2) -> 2596886 | J2: 13329 | K2: 9.8 | L2: =VLOOKUP(I2,List!$A$2:$E$6,4,1) -> 1 | M2: =VLOOKUP(J2,List!$B$2:$D$6,3,1) -> 1 | N2: =VLOOKUP(K2,List!$C$2:$D$6,2,1) -> 5 | P2: =INDEX($L$1:$N$11,ROW(A2),MATCH(Map!$B$1,$L$1:$N$1,0)) -> 1 | Q2: =INDEX($I$1:$K$11,ROW(A2),MATCH(Map!$B$1,$L$1:$N$1,0)) -> 2596886 | R2: =B2&" "&Q2 -> North East 2596886
A3: NorthWest | B3: North West | C3: 824257 | D3: 869244 | E3: 956222 | F3: 2791655 | G3: 1067386 | H3: 543413 | I3: =SUM(C3:H3) -> 7052177 | J3: 14176 | K3: 8.6 | L3: =VLOOKUP(I3,List!$A$2:$E$6,4,1) -> 4 | M3: =VLOOKUP(J3,List!$B$2:$D$6,3,1) -> 2 | N3: =VLOOKUP(K3,List!$C$2:$D$6,2,1) -> 4 | P3: =INDEX($L$1:$N$11,ROW(A3),MATCH(Map!$B$1,$L$1:$N$1,0)) -> 4 | Q3: =INDEX($I$1:$K$11,ROW(A3),MATCH(Map!$B$1,$L$1:$N$1,0)) -> 7052177 | R3: =B3&" "&Q3 -> North West 7052177
A4: YorkshireAndHumber | B4: Yorkshire And The Humber | C4: 625922 | D4: 654741 | E4: 729983 | F4: 2073187 | G4: 789178 | H4: 410722 | I4: 5283733 | J4: 13594 | K4: 8.7 | L4: =VLOOKUP(I4,List!$A$2:$E$6,4,1) -> 3 | M4: =VLOOKUP(J4,List!$B$2:$D$6,3,1) -> 1 | N4: =VLOOKUP(K4,List!$C$2:$D$6,2,1) -> 4 | P4: =INDEX($L$1:$N$11,ROW(A4),MATCH(Map!$B$1,$L$1:$N$1,0)) -> 3 | Q4: =INDEX($I$1:$K$11,ROW(A4),MATCH(Map!$B$1,$L$1:$N$1,0)) -> 5283733 | R4: Yorkshire And The Humber 5283733
A5: EastMidlands | B5: East Midlands | C5: 517738 | D5: 560452 | E5: 586257 | F5: 1804426 | G5: 706114 | H5: 358235 | I5: 4533222 | J5: 14267 | K5: 7.9 | L5: =VLOOKUP(I5,List!$A$2:$E$6,4,1) -> 2 | M5: =VLOOKUP(J5,List!$B$2:$D$6,3,1) -> 2 | N5: =VLOOKUP(K5,List!$C$2:$D$6,2,1) -> 3 | P5: =INDEX($L$1:$N$11,ROW(A5),MATCH(Map!$B$1,$L$1:$N$1,0)) -> 2 | Q5: =INDEX($I$1:$K$11,ROW(A5),MATCH(Map!$B$1,$L$1:$N$1,0)) -> 4533222 | R5: East Midlands 4533222
A6: WestMidlands | B6: West Midlands | C6: 681861 | D6: 710070 | E6: 744195 | F6: 2184481 | G6: 840954 | H6: 440286 | I6: 5601847 | J6: 14021 | K6: 8.5 | L6: =VLOOKUP(I6,List!$A$2:$E$6,4,1) -> 3 | M6: =VLOOKUP(J6,List!$B$2:$D$6,3,1) -> 2 | N6: =VLOOKUP(K6,List!$C$2:$D$6,2,1) -> 4 | P6: =INDEX($L$1:$N$11,ROW(A6),MATCH(Map!$B$1,$L$1:$N$1,0)) -> 3 | Q6: =INDEX($I$1:$K$11,ROW(A6),MATCH(Map!$B$1,$L$1:$N$1,0)) -> 5601847 | R6: West Midlands 5601847
A7: East | B7: East | C7: 689781 | D7: 704150 | E7: 715617 | F7: 2340669 | G7: 903959 | H7: 492789 | I7: 5846965 | J7: 16392 | K7: 6.5 | L7: =VLOOKUP(I7,List!$A$2:$E$6,4,1) -> 3 | M7: =VLOOKUP(J7,List!$B$2:$D$6,3,1) -> 3 | N7: =VLOOKUP(K7,List!$C$2:$D$6,2,1) -> 3 | P7: =INDEX($L$1:$N$11,ROW(A7),MATCH(Map!$B$1,$L$1:$N$1,0)) -> 3 | Q7: =INDEX($I$1:$K$11,ROW(A7),MATCH(Map!$B$1,$L$1:$N$1,0)) -> 5846965 | R7: East 5846965
A8: London | B8: London | C8: 1074304 | D8: 928524 | E8: 1462938 | F8: 3460836 | G8: 815648 | H8: 431691 | I8: 8173941 | J8: 20238 | K8: 9.3 | L8: =VLOOKUP(I8,List!$A$2:$E$6,4,1) -> 5 | M8: =VLOOKUP(J8,List!$B$2:$D$6,3,1) -> 5 | N8: =VLOOKUP(K8,List!$C$2:$D$6,2,1) -> 5 | P8: =INDEX($L$1:$N$11,ROW(A8),MATCH(Map!$B$1,$L$1:$N$1,0)) -> 5 | Q8: =INDEX($I$1:$K$11,ROW(A8),MATCH(Map!$B$1,$L$1:$N$1,0)) -> 8173941 | R8: London 8173941
A9: SouthEast | B9: South East | C9: 1022293 | D9: 1054559 | E9: 1062344 | F9: 3478135 | G9: 1299094 | H9: 718325 | I9: 8634750 | J9: 17610 | K9: 5.7 | L9: =VLOOKUP(I9,List!$A$2:$E$6,4,1) -> 5 | M9: =VLOOKUP(J9,List!$B$2:$D$6,3,1) -> 3 | N9: =VLOOKUP(K9,List!$C$2:$D$6,2,1) -> 2 | P9: =INDEX($L$1:$N$11,ROW(A9),MATCH(Map!$B$1,$L$1:$N$1,0)) -> 5 | Q9: =INDEX($I$1:$K$11,ROW(A9),MATCH(Map!$B$1,$L$1:$N$1,0)) -> 8634750 | R9: South East 8634750
A10: SouthWest | B10: South West | C10: 568783 | D10: 624969 | E10: 640325 | F10: 2057907 | G10: 894409 | H10: 502542 | I10: =SUM(C10:H10) -> 5288935 | J10: 15653 | K10: 6.4 | L10: =VLOOKUP(I10,List!$A$2:$E$6,4,1) -> 3 | M10: =VLOOKUP(J10,List!$B$2:$D$6,3,1) -> 2 | N10: =VLOOKUP(K10,List!$C$2:$D$6,2,1) -> 2 | P10: =INDEX($L$1:$N$11,ROW(A10),MATCH(Map!$B$1,$L$1:$N$1,0)) -> 3 | Q10: =INDEX($I$1:$K$11,ROW(A10),MATCH(Map!$B$1,$L$1:$N$1,0)) -> 5288935 | R10: South West 5288935
A14: Shape | B14: Region | C14: House Price | D14: Income /House $ | E14: Weekly Spend
A15: NorthEast | B15: North East | C15: 140.2125485 | D15: =C15/(J2/1000) -> 10.51935993 | E15: 408.7
A16: NorthWest | B16: North West | C16: 158.3482049 | D16: 11.17016118 | E16: 447.5
A17: YorkshireAndHumber | B17: Yorkshire And The Humber | C17: 158.5338394 | D17: 11.66204497 | E17: 422.7
A18: EastMidlands | B18: East Midlands | C18: 165.6934907 | D18: 11.61375837 | E18: 453.9
A19: WestMidlands | B19: West Midlands | C19: 176.0500201 | D19: 12.55616718 | E19: 440.6
A20: East | B20: East | C20: 243.4576168 | D20: 14.85222162 | E20: 511.3
A21: London | B21: London | C21: 475.0819167 | D21: 23.47474635 | E21: 571.6
A22: SouthEast | B22: South East | C22: 292.2085926 | D22: 16.59333292 | E22: 561.3
A23: SouthWest | B23: South West | C23: 292.2085926 | D23: 18.66789706 | E23: 502.3

Sheet Life
A1: Region | B1: 2001-2003 | C1: 2002-2004 | D1: 2003-2005 | E1: 2004-2006 | F1: 2005-2007 | G1: 2006-2008 | H1: 2007-2009 | I1: 2008-2010 | J1: 2009-2011 | K1: 2010-2012
A2: All Regions | B2: =AVERAGE(B3:B11) -> 76.12222222 | C2: 76.4 | D2: 76.76666667 | E2: 77.15555556 | F2: 77.5 | G2: 77.76666667 | H2: 78.05555556 | I2: 78.37777778 | J2: 78.78888889 | K2: 79.07777778
A3: North East | B3: 74.7 | C3: 74.9 | D3: 75.3 | E3: 75.7 | F3: 76.2 | G3: 76.4 | H3: 76.7 | I3: 77.1 | J3: 77.5 | K3: 77.8
A4: North West | B4: 74.8 | C4: 75.1 | D4: 75.4 | E4: 75.8 | F4: 76.1 | G4: 76.4 | H4: 76.6 | I4: 77 | J4: 77.4 | K4: 77.7
A5: Yorkshire and The Humber | B5: 75.6 | C5: 75.8 | D5: 76.2 | E5: 76.5 | F5: 76.8 | G5: 77.1 | H5: 77.4 | I5: 77.7 | J5: 78.1 | K5: 78.3
A6: East Midlands | B6: 76.3 | C6: 76.5 | D6: 76.9 | E6: 77.3 | F6: 77.6 | G6: 77.8 | H6: 78.1 | I6: 78.3 | J6: 78.7 | K6: 79.1
A7: West Midlands | B7: 75.6 | C7: 75.9 | D7: 76.2 | E7: 76.6 | F7: 76.9 | G7: 77.2 | H7: 77.5 | I7: 77.9 | J7: 78.4 | K7: 78.7
A8: East | B8: 77.3 | C8: 77.6 | D8: 77.9 | E8: 78.3 | F8: 78.6 | G8: 78.9 | H8: 79.2 | I8: 79.5 | J8: 79.9 | K8: 80.1
A9: London | B9: 76 | C9: 76.4 | D9: 76.8 | E9: 77.3 | F9: 77.7 | G9: 78.1 | H9: 78.5 | I9: 78.8 | J9: 79.3 | K9: 79.7
A10: South East | B10: 77.4 | C10: 77.7 | D10: 78.1 | E10: 78.5 | F10: 78.9 | G10: 79.1 | H10: 79.4 | I10: 79.7 | J10: 80 | K10: 80.3
A11: South West | B11: 77.4 | C11: 77.7 | D11: 78.1 | E11: 78.4 | F11: 78.7 | G11: 78.9 | H11: 79.1 | I11: 79.4 | J11: 79.8 | K11: 80
B15: 2002 | C15: 2003 | D15: 2004 | E15: 2005 | F15: 2006 | G15: 2007 | H15: 2008 | I15: 2009 | J15: 2010 | K15: 2011
A16: =Map!B3 -> London | B16: =VLOOKUP($A16,$A$2:$K$11,COLUMN(),0) -> 76 | C16: 76.4 | D16: 76.8 | E16: 77.3 | F16: 77.7 | G16: 78.1 | H16: 78.5 | I16: 78.8 | J16: 79.3 | K16: 79.7

Sheet Calcs
A1: Region | B1: Result | C1: 0 to 9 | D1: 10 to 19 | E1: 20 to 30 | F1: 30 to 59 | G1: 60 to 74 | H1: 75 and Over
A2: =INDEX(Region,MATCH(B2,Data!$Q$2:$Q$11,0)) -> South East | B2: =LARGE(Data!$Q$2:$Q$11,ROW(A1)) -> 8634750 | C2: =VLOOKUP($A2,Data!$B$2:$I$11,COLUMN()-1,0) -> 1022293 | D2: =VLOOKUP($A2,Data!$B$2:$I$11,COLUMN()-1,0) -> 1054559 | E2: =VLOOKUP($A2,Data!$B$2:$I$11,COLUMN()-1,0) -> 1062344 | F2: =VLOOKUP($A2,Data!$B$2:$I$11,COLUMN()-1,0) -> 3478135 | G2: =VLOOKUP($A2,Data!$B$2:$I$11,COLUMN()-1,0) -> 1299094 | H2: =VLOOKUP($A2,Data!$B$2:$I$11,COLUMN()-1,0) -> 718325
A3: =INDEX(Region,MATCH(B3,Data!$Q$2:$Q$11,0)) -> London | B3: =LARGE(Data!$Q$2:$Q$11,ROW(A2)) -> 8173941 | C3: =VLOOKUP($A3,Data!$B$2:$I$11,COLUMN()-1,0) -> 1074304 | D3: =VLOOKUP($A3,Data!$B$2:$I$11,COLUMN()-1,0) -> 928524 | E3: =VLOOKUP($A3,Data!$B$2:$I$11,COLUMN()-1,0) -> 1462938 | F3: =VLOOKUP($A3,Data!$B$2:$I$11,COLUMN()-1,0) -> 3460836 | G3: =VLOOKUP($A3,Data!$B$2:$I$11,COLUMN()-1,0) -> 815648 | H3: =VLOOKUP($A3,Data!$B$2:$I$11,COLUMN()-1,0) -> 431691
A4: =INDEX(Region,MATCH(B4,Data!$Q$2:$Q$11,0)) -> North West | B4: =LARGE(Data!$Q$2:$Q$11,ROW(A3)) -> 7052177 | C4: =VLOOKUP($A4,Data!$B$2:$I$11,COLUMN()-1,0) -> 824257 | D4: =VLOOKUP($A4,Data!$B$2:$I$11,COLUMN()-1,0) -> 869244 | E4: =VLOOKUP($A4,Data!$B$2:$I$11,COLUMN()-1,0) -> 956222 | F4: =VLOOKUP($A4,Data!$B$2:$I$11,COLUMN()-1,0) -> 2791655 | G4: =VLOOKUP($A4,Data!$B$2:$I$11,COLUMN()-1,0) -> 1067386 | H4: =VLOOKUP($A4,Data!$B$2:$I$11,COLUMN()-1,0) -> 543413
A5: =INDEX(Region,MATCH(B5,Data!$Q$2:$Q$11,0)) -> East | B5: =LARGE(Data!$Q$2:$Q$11,ROW(A4)) -> 5846965 | C5: =VLOOKUP($A5,Data!$B$2:$I$11,COLUMN()-1,0) -> 689781 | D5: =VLOOKUP($A5,Data!$B$2:$I$11,COLUMN()-1,0) -> 704150 | E5: =VLOOKUP($A5,Data!$B$2:$I$11,COLUMN()-1,0) -> 715617 | F5: =VLOOKUP($A5,Data!$B$2:$I$11,COLUMN()-1,0) -> 2340669 | G5: =VLOOKUP($A5,Data!$B$2:$I$11,COLUMN()-1,0) -> 903959 | H5: =VLOOKUP($A5,Data!$B$2:$I$11,COLUMN()-1,0) -> 492789
A6: =INDEX(Region,MATCH(B6,Data!$Q$2:$Q$11,0)) -> West Midlands | B6: =LARGE(Data!$Q$2:$Q$11,ROW(A5)) -> 5601847 | C6: =VLOOKUP($A6,Data!$B$2:$I$11,COLUMN()-1,0) -> 681861 | D6: =VLOOKUP($A6,Data!$B$2:$I$11,COLUMN()-1,0) -> 710070 | E6: =VLOOKUP($A6,Data!$B$2:$I$11,COLUMN()-1,0) -> 744195 | F6: =VLOOKUP($A6,Data!$B$2:$I$11,COLUMN()-1,0) -> 2184481 | G6: =VLOOKUP($A6,Data!$B$2:$I$11,COLUMN()-1,0) -> 840954 | H6: =VLOOKUP($A6,Data!$B$2:$I$11,COLUMN()-1,0) -> 440286
A7: =INDEX(Region,MATCH(B7,Data!$Q$2:$Q$11,0)) -> South West | B7: =LARGE(Data!$Q$2:$Q$11,ROW(A6)) -> 5288935 | C7: =VLOOKUP($A7,Data!$B$2:$I$11,COLUMN()-1,0) -> 568783 | D7: =VLOOKUP($A7,Data!$B$2:$I$11,COLUMN()-1,0) -> 624969 | E7: =VLOOKUP($A7,Data!$B$2:$I$11,COLUMN()-1,0) -> 640325 | F7: =VLOOKUP($A7,Data!$B$2:$I$11,COLUMN()-1,0) -> 2057907 | G7: =VLOOKUP($A7,Data!$B$2:$I$11,COLUMN()-1,0) -> 894409 | H7: =VLOOKUP($A7,Data!$B$2:$I$11,COLUMN()-1,0) -> 502542
A8: =INDEX(Region,MATCH(B8,Data!$Q$2:$Q$11,0)) -> Yorkshire And The Humber | B8: =LARGE(Data!$Q$2:$Q$11,ROW(A7)) -> 5283733 | C8: =VLOOKUP($A8,Data!$B$2:$I$11,COLUMN()-1,0) -> 625922 | D8: =VLOOKUP($A8,Data!$B$2:$I$11,COLUMN()-1,0) -> 654741 | E8: =VLOOKUP($A8,Data!$B$2:$I$11,COLUMN()-1,0) -> 729983 | F8: =VLOOKUP($A8,Data!$B$2:$I$11,COLUMN()-1,0) -> 2073187 | G8: =VLOOKUP($A8,Data!$B$2:$I$11,COLUMN()-1,0) -> 789178 | H8: =VLOOKUP($A8,Data!$B$2:$I$11,COLUMN()-1,0) -> 410722
A9: =INDEX(Region,MATCH(B9,Data!$Q$2:$Q$11,0)) -> East Midlands | B9: =LARGE(Data!$Q$2:$Q$11,ROW(A8)) -> 4533222 | C9: =VLOOKUP($A9,Data!$B$2:$I$11,COLUMN()-1,0) -> 517738 | D9: =VLOOKUP($A9,Data!$B$2:$I$11,COLUMN()-1,0) -> 560452 | E9: =VLOOKUP($A9,Data!$B$2:$I$11,COLUMN()-1,0) -> 586257 | F9: =VLOOKUP($A9,Data!$B$2:$I$11,COLUMN()-1,0) -> 1804426 | G9: =VLOOKUP($A9,Data!$B$2:$I$11,COLUMN()-1,0) -> 706114 | H9: =VLOOKUP($A9,Data!$B$2:$I$11,COLUMN()-1,0) -> 358235
A10: =INDEX(Region,MATCH(B10,Data!$Q$2:$Q$11,0)) -> North East | B10: =LARGE(Data!$Q$2:$Q$11,ROW(A9)) -> 2596886 | C10: =VLOOKUP($A10,Data!$B$2:$I$11,COLUMN()-1,0) -> 286142 | D10: =VLOOKUP($A10,Data!$B$2:$I$11,COLUMN()-1,0) -> 314485 | E10: =VLOOKUP($A10,Data!$B$2:$I$11,COLUMN()-1,0) -> 348321 | F10: =VLOOKUP($A10,Data!$B$2:$I$11,COLUMN()-1,0) -> 1029877 | G10: =VLOOKUP($A10,Data!$B$2:$I$11,COLUMN()-1,0) -> 407818 | H10: =VLOOKUP($A10,Data!$B$2:$I$11,COLUMN()-1,0) -> 210243
A13: Friendly Name | B13: Region | C13: Income | D13: House | E13: Multiple | F13: Wkly Spend | G13: Annual
A14: North East | B14: North East | C14: =Data!J2/1000 -> 13.329 | D14: =Data!C15 -> 140.2125485 | E14: =D14/C14 -> 10.51935993 | F14: =Data!E15 -> 408.7 | G14: =F14*52 -> 21252.4
A15: North West | B15: North West | C15: =Data!J3/1000 -> 14.176 | D15: =Data!C16 -> 158.3482049 | E15: =D15/C15 -> 11.17016118 | F15: =Data!E16 -> 447.5 | G15: =F15*52 -> 23270
A16: Yorkshire & H | B16: Yorkshire And The Humber | C16: =Data!J4/1000 -> 13.594 | D16: =Data!C17 -> 158.5338394 | E16: 11.66204497 | F16: =Data!E17 -> 422.7 | G16: 21980.4
A17: East Midlands | B17: East Midlands | C17: =Data!J5/1000 -> 14.267 | D17: =Data!C18 -> 165.6934907 | E17: 11.61375837 | F17: =Data!E18 -> 453.9 | G17: 23602.8
A18: West Midlands | B18: West Midlands | C18: =Data!J6/1000 -> 14.021 | D18: =Data!C19 -> 176.0500201 | E18: 12.55616718 | F18: =Data!E19 -> 440.6 | G18: 22911.2
A19: East | B19: East | C19: =Data!J7/1000 -> 16.392 | D19: =Data!C20 -> 243.4576168 | E19: 14.85222162 | F19: =Data!E20 -> 511.3 | G19: 26587.6
A20: London | B20: London | C20: =Data!J8/1000 -> 20.238 | D20: =Data!C21 -> 475.0819167 | E20: 23.47474635 | F20: =Data!E21 -> 571.6 | G20: 29723.2
A21: South East | B21: South East | C21: =Data!J9/1000 -> 17.61 | D21: =Data!C22 -> 292.2085926 | E21: 16.59333292 | F21: =Data!E22 -> 561.3 | G21: 29187.6
A22: South West | B22: South West | C22: =Data!J10/1000 -> 15.653 | D22: =Data!C23 -> 292.2085926 | E22: 18.66789706 | F22: =Data!E23 -> 502.3 | G22: 26119.6

Sheet Map
B1: Population
B2: =B1&" Metrics" -> Population Metrics
B3: London
B6: =B1 -> Population
B7: 0 to 3.0m | G7: Regions | H7: Result % | I7: Unemployment | J7: 0 to 9 | K7: 10 to 19 | L7: 20 to 30 | M7: 30 to 59 | N7: 60 to 74 | O7: 75 and Over
B8: 3m to 5m | G8: =Calcs!A2 -> South East | H8: =Calcs!B2 -> 8634750 | I8: =REPT("|",H8*100/MAX($H$8:$H$15)) -> |||||||||||||||||||||||||||||||||||||||||||||||||||||||||||||||||||||||||||||||||||||||||||||||||||| | J8: =Calcs!C2 -> 1022293 | K8: =Calcs!D2 -> 1054559 | L8: =Calcs!E2 -> 1062344 | M8: =Calcs!F2 -> 3478135 | N8: =Calcs!G2 -> 1299094 | O8: =Calcs!H2 -> 718325
B9: 5m to 6m | G9: =Calcs!A3 -> London | H9: =Calcs!B3 -> 8173941 | I9: =REPT("|",H9*100/MAX($H$8:$H$15)) -> |||||||||||||||||||||||||||||||||||||||||||||||||||||||||||||||||||||||||||||||||||||||||||||| | J9: =Calcs!C3 -> 1074304 | K9: =Calcs!D3 -> 928524 | L9: =Calcs!E3 -> 1462938 | M9: =Calcs!F3 -> 3460836 | N9: =Calcs!G3 -> 815648 | O9: =Calcs!H3 -> 431691
B10: 6m to 8m | G10: =Calcs!A4 -> North West | H10: =Calcs!B4 -> 7052177 | I10: ||||||||||||||||||||||||||||||||||||||||||||||||||||||||||||||||||||||||||||||||| | J10: =Calcs!C4 -> 824257 | K10: =Calcs!D4 -> 869244 | L10: =Calcs!E4 -> 956222 | M10: =Calcs!F4 -> 2791655 | N10: =Calcs!G4 -> 1067386 | O10: =Calcs!H4 -> 543413
B11: 8m + | G11: =Calcs!A5 -> East | H11: =Calcs!B5 -> 5846965 | I11: ||||||||||||||||||||||||||||||||||||||||||||||||||||||||||||||||||| | J11: =Calcs!C5 -> 689781 | K11: =Calcs!D5 -> 704150 | L11: =Calcs!E5 -> 715617 | M11: =Calcs!F5 -> 2340669 | N11: =Calcs!G5 -> 903959 | O11: =Calcs!H5 -> 492789
G12: =Calcs!A6 -> West Midlands | H12: =Calcs!B6 -> 5601847 | I12: |||||||||||||||||||||||||||||||||||||||||||||||||||||||||||||||| | J12: =Calcs!C6 -> 681861 | K12: =Calcs!D6 -> 710070 | L12: =Calcs!E6 -> 744195 | M12: =Calcs!F6 -> 2184481 | N12: =Calcs!G6 -> 840954 | O12: =Calcs!H6 -> 440286
G13: =Calcs!A7 -> South West | H13: =Calcs!B7 -> 5288935 | I13: ||||||||||||||||||||||||||||||||||||||||||||||||||||||||||||| | J13: =Calcs!C7 -> 568783 | K13: =Calcs!D7 -> 624969 | L13: =Calcs!E7 -> 640325 | M13: =Calcs!F7 -> 2057907 | N13: =Calcs!G7 -> 894409 | O13: =Calcs!H7 -> 502542
G14: =Calcs!A8 -> Yorkshire And The Humber | H14: =Calcs!B8 -> 5283733 | I14: ||||||||||||||||||||||||||||||||||||||||||||||||||||||||||||| | J14: =Calcs!C8 -> 625922 | K14: =Calcs!D8 -> 654741 | L14: =Calcs!E8 -> 729983 | M14: =Calcs!F8 -> 2073187 | N14: =Calcs!G8 -> 789178 | O14: =Calcs!H8 -> 410722
G15: =Calcs!A9 -> East Midlands | H15: =Calcs!B9 -> 4533222 | I15: |||||||||||||||||||||||||||||||||||||||||||||||||||| | J15: =Calcs!C9 -> 517738 | K15: =Calcs!D9 -> 560452 | L15: =Calcs!E9 -> 586257 | M15: =Calcs!F9 -> 1804426 | N15: =Calcs!G9 -> 706114 | O15: =Calcs!H9 -> 358235
G17: Region | H17: Avg House $ | I17: Multiple of Income
G18: =Calcs!A14 -> North East | H18: =Calcs!D14 -> 140.2125485 | I18: =Calcs!E14 -> 10.51935993
G19: =Calcs!A15 -> North West | H19: =Calcs!D15 -> 158.3482049 | I19: =Calcs!E15 -> 11.17016118
G20: =Calcs!A16 -> Yorkshire & H | H20: =Calcs!D16 -> 158.5338394 | I20: =Calcs!E16 -> 11.66204497
G21: =Calcs!A17 -> East Midlands | H21: =Calcs!D17 -> 165.6934907 | I21: =Calcs!E17 -> 11.61375837
G22: =Calcs!A18 -> West Midlands | H22: =Calcs!D18 -> 176.0500201 | I22: =Calcs!E18 -> 12.55616718
G23: =Calcs!A19 -> East | H23: =Calcs!D19 -> 243.4576168 | I23: =Calcs!E19 -> 14.85222162
G24: =Calcs!A20 -> London | H24: =Calcs!D20 -> 475.0819167 | I24: =Calcs!E20 -> 23.47474635
G25: =Calcs!A21 -> South East | H25: =Calcs!D21 -> 292.2085926 | I25: =Calcs!E21 -> 16.59333292
G26: =Calcs!A22 -> South West | H26: =Calcs!D22 -> 292.2085926 | I26: =Calcs!E22 -> 18.66789706
F33: Annual Spend (£) | G33: Region | H33: Weekly Spend (£)
G35: North East
G36: North West
G37: Yorkshire & H
G38: East Midlands
G39: West Midlands
G40: East
G41: London
G42: South East
G43: South West
